[Event "26th Womens ECCC 2022"]
[Site "Mayrhofen"]
[Date "2022.10.09"]
[Round "7.23"]
[White "Reprun, Nadejda"]
[Black "Navrotescu, Andreea"]
[Result "0-1"]
[ECO "B69"]
[WhiteElo "1968"]
[BlackElo "2287"]
[Annotator "TA"]
[PlyCount "98"]
[EventDate "2022.10.03"]
[EventType "team-tourn"]
[EventCountry "AUT"]
[SourceTitle "playchess.com"]
[Source "ChessBase"]
[SourceQuality "1"]
[TimeControl "40/5400+30:1800+30"]

{[%evp 24,98,34,-12,23,23,42,10,49,0,17,0,48,8,1,0,10,-31,-44,-32,-31,-25,-30,-171,-161,-185,-173,-241,-220,-213,-213,-359,-363,-366,-359,-329,-75,-62,-51,-58,-48,-66,-67,-47,-39,-46,-15,-18,-20,-21,-17,-14,-2,-386,-389,-393,-380,-375,-266,-516,-403,-413,-273,-170,-160,-215,-213,-193,-169,-634,-619,-4757,-4702,-2719,-1762,-5401,-4690]} 1. e4 {[%emt 0:00:02] McShane,L} c5 {[%emt 0:00:06]} 2. Nf3 {[%emt 0:00:05]} d6 {[%emt 0:00:06]} 3. d4 {[%emt 0:00:04]} cxd4 {[%emt 0:00:06]} 4. Nxd4 {[%emt 0:00:02]} Nf6 {[%emt 0:00:09]} 5. Nc3 {[%emt 0:00:03]} Nc6 {[%emt 0:00:07]} 6. Bg5 {[%emt 0:00:45]} e6 {[%emt 0:00:08]} 7. Qd2 {[%emt 0:01:36]} a6 {[%emt 0:01:01]} 8. O-O-O {[%emt 0:00:59]} Bd7 {[%emt 0:00:09]} 9. f4 {[%emt 0:00:43]} Be7 {[%emt 0:00:16]} 10. Nf3 {[%emt 0:03:59]} b5 {[%emt 0:00:23]} 11. Bxf6 {[%emt 0:01:16]} gxf6 {[%emt 0:04:29]} 12. f5 {[%emt 0:01:18]} Qb6 {[%emt 0:00:14]} 13. g3 {[%emt 0:02:24]} (13. Kb1 $14 {might be stronger.}) 13... O-O-O $1 {[%emt 0:04:26] 13...0-0-0 is better than 13...b4. B69: Sicilian: Richter-Rauzer: 7...a6 8 0-0-0 Bd7 9 f4 Be7 10 Nf3 b5 11 Bxf6.} 14. Bh3 {[%emt 0:06:43]} Kb8 {[%emt 0:07:17] [#]} 15. Rhe1 $146 {[%emt 0:06:39]} ({Predecessor:} 15. fxe6 fxe6 16. Rhf1 Na5 17. Qf2 Qxf2 18. Rxf2 b4 19. Ne2 d5 20. exd5 Bc5 21. Rff1 {½-½ (59) McShane,L (2688)-Grandelius,N (2691) Eskilstuna 2019 CBM 191 Extra [McShane,L]}) 15... b4 {[%emt 0:02:36] The position is equal.} 16. Ne2 {[%emt 0:18:25]} (16. Na4 $5 {[%cal Ra4b6]} Qc7 17. Kb1 $14) 16... e5 {[%emt 0:00:45] Prevents Nf4.} 17. Kb1 {[%emt 0:02:33]} Bc8 {[%emt 0:01:31]} (17... Na5 $11 {deserves consideration.}) 18. Nc1 {[%emt 0:01:51]} Bb7 {[%emt 0:01:31]} 19. Bf1 {[%emt 0:10:33]} Na5 {[%emt 0:01:51] Inhibits Bc4.} 20. Qe3 {[%emt 0:02:48]} Qxe3 {[%emt 0:00:49]} 21. Rxe3 {[%emt 0:00:02]} d5 {[%emt 0:04:03]} 22. exd5 {[%emt 0:01:53]} Bxd5 {[%emt 0:06:16]} 23. Rxd5 {[%emt 0:00:08]} Rxd5 $19 {[%emt 0:00:06]} 24. Bxa6 {[%emt 0:00:30]} Rd1 {[%emt 0:01:23]} 25. b3 {[%emt 0:02:01]} (25. Re4 $142) 25... Bc5 {[%emt 0:01:50]} 26. Re4 {[%emt 0:02:52]} Nc6 {[%emt 0:01:18]} 27. Re1 {[%emt 0:09:44]} (27. Be2 {was necessary.} Rh1 28. Kb2) 27... Rhd8 {[%emt 0:01:06] ...Rxe1 is the strong threat.} 28. Bd3 {[%emt 0:00:19]} Rxe1 {[%emt 0:00:40]} 29. Nxe1 {[%emt 0:00:01]} e4 {[%emt 0:00:25] Prevents Nf3.} (29... Be3 $19 {[%cal Oe5e4] aiming for ...e4!} 30. Ng2 Bh6) 30. Bxe4 $17 {[%emt 0:00:47]} Re8 {[%emt 0:01:42] Black is more active.} 31. Ned3 {[%emt 0:00:47]} Rxe4 {[%emt 0:01:08]} 32. Nxc5 $15 {[%emt 0:00:05][%mdl 4096] Endgame KRN-KNN} Re1 {[%emt 0:01:06]} 33. Nd7+ {[%emt 0:01:37]} Kb7 {[%emt 0:04:16]} 34. Nxf6 {[%emt 0:01:39]} Nd4 {[%emt 0:01:03] [#] Strongly threatening ...Ne2.} (34... Rh1 $5 {[%cal Rc6d4]}) 35. Kb2 {[%emt 0:01:27]} Rh1 {[%emt 0:01:36]} 36. Nd3 {[%emt 0:00:52]} Rxh2 {[%emt 0:00:33]} 37. Nxb4 {[%emt 0:00:17]} Nxf5 {[%emt 0:00:44]} 38. a4 $2 {[%emt 0:01:53][%mdl 8192]} (38. g4 $1 $11 {and White stays safe.}) 38... Nxg3 $19 {[%emt 0:00:52]} 39. a5 {[%emt 0:01:09]} Nf5 {[%emt 0:01:28]} 40. a6+ {[%emt 0:02:26]} Ka7 {[%emt 0:00:01]} 41. Ka3 $2 {[%emt 0:35:15]} (41. Ng4 Rh3 42. Ne5) 41... Nd6 {[%emt 0:32:33] White must now prevent ...h5.} 42. Nfd5 {[%emt 0:01:42]} f5 {[%emt 0:08:45][%cal Bf7f5,Bf5f4,Bf4f3,Bf3f2][%mdl 32] And now ...h5 would win.} 43. c4 {[%emt 0:03:28]} Rh6 {[%emt 0:03:19]} 44. Nc7 {[%emt 0:05:47] [#]} (44. Ne7 $17) 44... Nc8 $1 {[%emt 0:01:14]} 45. Ka4 {[%emt 0:02:07]} f4 {[%emt 0:01:32]} 46. c5 $2 {[%emt 0:00:00]} (46. Nb5+ Kb6 47. Nd5+ Kxa6 48. Nxf4) 46... f3 {[%emt 0:00:00] Threatens to win with ...f2. Black is clearly winning.} 47. Ncd5 {[%emt 0:00:00]} f2 {[%emt 0:00:00]} 48. Ne3 {[%emt 0:00:00]} Re6 {[%emt 0:00:00]} 49. Nf1 {[%emt 0:00:00]} Re1 {[%emt 0:00:00] Weighted Error Value: White=0.91/Black=0.24 (precise)} 0-1

[Event "26th Womens ECCC 2022"]
[Site "Mayrhofen"]
[Date "2022.10.09"]
[Round "7.24"]
[White "Schebacher, Solene"]
[Black "Vardi, Shlomit"]
[Result "1/2-1/2"]
[ECO "B06"]
[WhiteElo "1866"]
[BlackElo "1769"]
[Annotator "NA RC COMBH"]
[PlyCount "108"]
[EventDate "2022.10.03"]
[EventType "team-tourn"]
[EventCountry "AUT"]
[SourceTitle "playchess.com"]
[Source "ChessBase"]
[SourceQuality "1"]
[TimeControl "40/5400+30:1800+30"]

1. e4 {[%emt 0:00:03]} d6 {[%emt 0:00:05]} 2. d4 {[%emt 0:00:09]} g6 {[%emt 0:00:04]} 3. Nc3 {[%emt 0:00:09]} Bg7 {[%emt 0:00:04]} 4. Bg5 {[%emt 0:01:07]} a6 {[%emt 0:00:21]} 5. Qd2 {[%emt 0:01:33]} b5 {[%emt 0:00:14]} 6. a4 {[%emt 0:02:02]} b4 {[%emt 0:00:26]} 7. Nd5 {[%emt 0:02:01]} a5 {[%emt 0:04:33]} 8. c3 {[%emt 0:03:09]} c6 {[%emt 0:00:56]} 9. Ne3 {[%emt 0:03:13]} h6 {[%emt 0:03:03]} 10. Bh4 {[%emt 0:03:21]} bxc3 {[%emt 0:03:14]} 11. bxc3 {[%emt 0:02:26]} Nf6 {[%emt 0:03:49]} 12. Bd3 {[%emt 0:03:53]} O-O {[%emt 0:07:17]} 13. f4 {[%emt 0:05:52]} Ba6 {[%emt 0:01:01]} 14. Ne2 {[%emt 0:03:43]} c5 {[%emt 0:03:31]} 15. dxc5 {[%emt 0:16:21]} dxc5 {[%emt 0:05:48]} 16. Bxa6 {[%emt 0:03:11]} Qxd2+ {[%emt 0:00:32]} 17. Kxd2 {[%emt 0:00:20]} Nxa6 {[%emt 0:01:52]} 18. e5 {[%emt 0:01:39]} Rfd8+ {[%emt 0:04:08]} 19. Ke1 {[%emt 0:03:04]} Ne4 {[%emt 0:05:09]} 20. Bxe7 {[%emt 0:01:59]} Rd7 {[%emt 0:01:26]} 21. Bh4 {[%emt 0:01:52]} Rd3 {[%emt 0:08:20]} 22. Nd1 {[%emt 0:02:37]} g5 {[%emt 0:04:44]} 23. Bg3 {[%emt 0:02:17]} gxf4 {[%emt 0:06:52]} 24. Bxf4 {[%emt 0:01:29]} Nc7 {[%emt 0:06:46]} 25. Nf2 {[%emt 0:06:29]} Nxf2 {[%emt 0:00:14]} 26. Kxf2 {[%emt 0:00:02]} Nd5 {[%emt 0:01:33]} 27. Rhc1 {[%emt 0:04:10]} Rb8 {[%emt 0:13:51]} 28. Rc2 {[%emt 0:09:14]} Rb3 {[%emt 0:01:22]} 29. Bd2 {[%emt 0:00:30]} Bxe5 {[%emt 0:05:02]} 30. Nc1 {[%emt 0:01:53]} c4 {[%emt 0:06:52]} 31. Nxd3 {[%emt 0:11:15]} cxd3 {[%emt 0:00:06]} 32. Rca2 {[%emt 0:00:33]} Nxc3 {[%emt 0:00:54]} 33. Bxc3 {[%emt 0:01:22]} Bxc3 {[%emt 0:01:32]} 34. Ra3 {[%emt 0:02:37]} Rb2+ {[%emt 0:00:55]} 35. Ke3 {[%emt 0:00:01]} Bb4 {[%emt 0:00:10]} 36. Rxd3 {[%emt 0:00:48]} Rxg2 {[%emt 0:00:05]} 37. h3 {[%emt 0:00:48]} Kg7 {[%emt 0:00:15]} 38. Kf3 {[%emt 0:00:53]} Rg5 {[%emt 0:00:34]} 39. Kf4 {[%emt 0:00:27]} Kf6 {[%emt 0:00:15]} 40. Rc1 {[%emt 0:00:47]} Rf5+ {[%emt 0:00:51]} 41. Ke4 {[%emt 0:30:43]} Re5+ {[%emt 0:30:27]} 42. Kd4 {[%emt 0:00:36]} Rh5 {[%emt 0:00:35]} 43. Rf3+ {[%emt 0:00:00]} Ke6 {[%emt 0:00:00]} 44. Rc6+ {[%emt 0:00:00]} Bd6 {[%emt 0:00:00]} 45. Kc4 {[%emt 0:00:00]} Kd7 {[%emt 0:00:00]} 46. Ra6 {[%emt 0:00:00]} Rc5+ {[%emt 0:00:00]} 47. Kd4 {[%emt 0:00:00]} f5 {[%emt 0:00:00]} 48. Ra7+ {[%emt 0:00:00]} Kc6 {[%emt 0:00:00]} 49. Rf7 {[%emt 0:00:00]} Be5+ {[%emt 0:00:00]} 50. Kd3 {[%emt 0:00:00]} f4 {[%emt 0:00:00]} 51. Rh7 {[%emt 0:00:00]} Kd5 {[%emt 0:00:00]} 52. Rxh6 {[%emt 0:00:00]} Rc3+ {[%emt 0:00:00]} 53. Ke2 {[%emt 0:00:00]} Rc2+ {[%emt 0:00:00]} 54. Kd3 {[%emt 0:00:00]} Rc3+ {[%emt 0:00:00]} 1/2-1/2

[Event "26th Womens ECCC 2022"]
[Site "Mayrhofen"]
[Date "2022.10.09"]
[Round "7.25"]
[White "Peglau, Charis"]
[Black "Krasteva, Beloslava"]
[Result "0-1"]
[ECO "A04"]
[WhiteElo "1960"]
[BlackElo "2287"]
[Annotator "TA"]
[PlyCount "158"]
[EventDate "2022.10.03"]
[EventType "team-tourn"]
[EventCountry "AUT"]
[SourceTitle "playchess.com"]
[Source "ChessBase"]
[SourceQuality "1"]
[TimeControl "40/5400+30:1800+30"]

{[%evp 9,158,24,32,0,-4,0,0,-9,0,0,0,0,12,-2,43,43,46,39,45,29,33,29,38,31,40,35,29,31,54,15,16,15,18,12,32,0,9,-18,35,29,22,35,61,5,36,0,0,-4,0,0,0,0,0,-18,-20,-18,-8,-142,-133,-236,-228,-375,-364,-533,-396,-1041,-879,-1063,-972,-950,-947,-900,-552,-589,-530,-545,-545,-537,-529,-529,-528,-529,-519,-588,-548,-846,-845,-796,-765,-969,-942,-729,-643,-1668,-1633,-1354,-1318,-1477,-1443,-5876,-5771,-1576,-1573,-29964,-29965,-29966,-29967,-29976,-29968,-29968,-29969,-29969,-29970,-29970,-29971,-29971,-29972,-29972,-29973,-29973,-29974,-29974,-29975,-29975,-29976,-29976,-29977,-29983,-29982,-29981,-29982,-29983,-29984,-29984,-29985,-29985,-29986,-29986,-29987,-29987,-29988,-29988,-29989,-29991,-29985,-29988,-29986,-29986,-29987,-29988,-29988]} 1. Nf3 {[%emt 0:00:03]} c5 {[%emt 0:01:18]} 2. c4 {[%emt 0:00:06]} Nc6 {[%emt 0:00:22]} 3. e3 {[%emt 0:00:16]} e5 {[%emt 0:00:56]} 4. Nc3 {[%emt 0:00:55]} d6 {[%emt 0:08:39]} 5. Be2 {[%emt 0:09:36]} f5 {[%emt 0:03:00]} 6. d3 {[%emt 0:01:18] [#] A35: Symmetrical English: 2 Nc3 Nc6 3 Nf3.} g6 $146 {[%emt 0:03:43]} ({Predecessor:} 6... Nf6 7. a3 b6 8. Qa4 Bd7 9. Qc2 g6 10. Rb1 Bg7 11. b4 O-O 12. b5 Ne7 13. Bb2 Qc7 {0-1 (13) De Oliveira,J (1487)-Carneiro,B (1580) Sao Paulo 2019}) 7. O-O {[%emt 0:04:31]} Bg7 {[%emt 0:00:31]} 8. Ne1 {[%emt 0:02:04] The position is equal.} Nge7 {[%emt 0:01:43]} 9. a3 {[%emt 0:02:17][%cal Ba2a3,Ba3b4,Bb4b5][%mdl 32]} O-O {[%emt 0:00:40]} 10. Rb1 {[%emt 0:00:40]} Be6 {[%emt 0:08:45]} 11. b4 {[%emt 0:05:05]} cxb4 {[%emt 0:02:40]} 12. axb4 d5 {[%emt 0:00:07]} 13. b5 {[%emt 0:05:20]} Na5 {[%emt 0:01:03][%cal Rd5c4]} 14. cxd5 {[%emt 0:00:26]} Nxd5 {[%emt 0:00:33]} 15. Nxd5 {[%emt 0:00:11]} Bxd5 {[%emt 0:01:48]} 16. Bd2 {[%emt 0:04:27]} b6 {[%emt 0:04:03]} 17. Bxa5 {[%emt 0:05:54]} bxa5 {[%emt 0:00:02]} 18. Qa4 {[%emt 0:00:12]} Re8 {[%emt 0:12:19]} 19. Ra1 {[%emt 0:04:20]} a6 {[%emt 0:00:44]} 20. bxa6 {[%emt 0:01:16]} Rxa6 {[%emt 0:00:52]} 21. e4 {[%emt 0:00:54]} Bf7 {[%emt 0:02:45]} 22. Nc2 {[%emt 0:04:14] Against Qd4} Ra8 {[%emt 0:03:23]} 23. Ne3 {[%emt 0:08:00]} Qg5 {[%emt 0:17:41]} (23... f4 $11 24. Nd5 (24. Nc4 Bf8 $11) 24... Bxd5 25. exd5 e4 26. dxe4 Bxa1 27. Rxa1 Qd6) 24. Rfb1 $14 {[%emt 0:03:34]} Red8 {[%emt 0:05:09]} 25. Rb7 {[%emt 0:11:14]} Qf6 {[%emt 0:07:51]} 26. Qb5 {[%emt 0:05:33]} (26. Rc1 $14) 26... Be8 {[%emt 0:01:32]} (26... f4 $5 {[%cal Rf4e3]} 27. Nc4 Qa6 $11) 27. Qc4+ {[%emt 0:00:53]} Kh8 {[%emt 0:00:15]} 28. Rc1 {[%emt 0:05:46]} Rab8 {[%emt 0:07:25]} 29. Rxb8 {[%emt 0:02:53]} Rxb8 {[%emt 0:00:02]} 30. Qc5 {[%emt 0:03:16]} a4 {[%emt 0:00:56]} 31. Nd5 {[%emt 0:00:37]} Qf8 {[%emt 0:01:52] Hoping for ...Qxc5.} 32. Qa7 {[%emt 0:02:57]} Bb5 {[%emt 0:00:59]} 33. f3 {[%emt 0:06:58] [#] White is on the road to losing.} (33. Nc7 $11 Qc8 34. Bf1) 33... a3 $1 $17 {[%emt 0:00:43]} 34. Nc7 {[%emt 0:00:29] [#]} (34. h3 $17 {is a better defense.}) 34... Bd7 $1 $19 {[%emt 0:01:16]} 35. Na6 {[%emt 0:00:30]} (35. Kf1 {might work better.}) 35... Rc8 {[%emt 0:00:57]} 36. Rd1 {[%emt 0:00:42]} (36. Rxc8 {was necessary.} Bxc8 37. Nc7) 36... Qd6 {[%emt 0:00:51] Strongly threatening ...Be6.} 37. Qb7 $2 {[%emt 0:00:57]} (37. Nb4) 37... a2 {[%emt 0:00:43]} 38. Qd5 {[%emt 0:00:31]} Qxd5 {[%emt 0:00:24]} 39. exd5 {[%emt 0:00:00]} Ra8 {[%emt 0:00:11]} 40. d4 {[%emt 0:00:46]} exd4 {[%emt 0:00:06]} 41. Bd3 {[%emt 0:30:19] [#]} Rxa6 $1 {[%emt 0:03:06][%mdl 512]} 42. Bxa6 {[%emt 0:00:00][%mdl 4096] Endgame Black must now prevent Ra1. KRB-KB} d3 {[%emt 0:00:03][%mdl 64] Promotion} 43. Bxd3 {[%emt 0:00:00]} a1=Q {[%emt 0:00:36]} 44. Rxa1 {[%emt 0:00:00]} Bxa1 {[%emt 0:00:07]} 45. Kf2 {[%emt 0:00:00]} Kg7 {[%emt 0:00:32]} 46. f4 {[%emt 0:00:00]} Kf6 {[%emt 0:00:30]} 47. h3 {[%emt 0:00:00]} Ke7 {[%emt 0:00:56]} 48. Bc4 {[%emt 0:00:00]} Kd6 {[%emt 0:00:38]} 49. Kg3 {[%emt 0:00:00]} Ba4 {[%emt 0:00:54]} 50. Kf2 {[%emt 0:00:00]} Bd4+ {[%emt 0:01:05]} 51. Kf3 {[%emt 0:00:00]} Bd1+ {[%emt 0:00:18]} 52. Kg3 {[%emt 0:00:00]} Bc2 {[%emt 0:00:53]} 53. h4 {[%emt 0:00:00]} Be4 {[%emt 0:02:01]} 54. Kh3 {[%emt 0:00:00]} Bxd5 {[%emt 0:00:43]} 55. Bd3 {[%emt 0:00:00]} Be3 {[%emt 0:02:16]} 56. g3 {[%emt 0:00:00]} Bf3 {[%emt 0:02:59] Black mates.} 57. Bc4 {[%emt 0:00:00]} Kc5 {[%emt 0:01:36]} 58. Bg8 {[%emt 0:00:00]} h6 {[%emt 0:00:12]} 59. Bf7 {[%emt 0:00:00]} Bh5 {[%emt 0:00:05]} 60. Kg2 {[%emt 0:00:24]} Kd4 {[%emt 0:00:20]} 61. Be8 {[%emt 0:00:20]} Kc3 {[%emt 0:00:37]} 62. Bf7 {[%emt 0:01:44]} Kd2 {[%emt 0:00:08]} 63. Be8 {[%emt 0:00:18]} Bc5 {[%emt 0:01:28]} 64. Bf7 {[%emt 0:07:15]} Ke3 {[%emt 0:00:36]} 65. Bd5 {[%emt 0:00:08]} Bd6 {[%emt 0:00:23]} 66. Bf7 {[%emt 0:00:25] [#]} Bxf4 $1 {[%emt 0:01:27]} 67. gxf4 {[%emt 0:00:01]} Kxf4 {[%emt 0:00:06] KB-KB} 68. Kh3 {[%emt 0:00:11]} Bg4+ {[%emt 0:00:06]} 69. Kg2 {[%emt 0:00:04]} Bf3+ {[%emt 0:00:09]} 70. Kh2 {[%emt 0:01:09]} g5 {[%emt 0:00:11]} 71. hxg5 {[%emt 0:00:07]} hxg5 {[%emt 0:00:04]} 72. Be6 {[%emt 0:00:20]} g4 {[%emt 0:00:59]} 73. Bd7 {[%emt 0:01:08]} Be4 {[%emt 0:00:09]} 74. Be8 {[%emt 0:00:45]} Kf3 {[%emt 0:00:26]} 75. Kg1 {[%emt 0:00:19]} f4 {[%emt 0:00:35][%cal Bf5f4,Bf4f3,Bf3f2][%mdl 32]} 76. Kf1 {[%emt 0:01:26]} Kg3 {[%emt 0:00:14]} 77. Bb5 {[%emt 0:02:00]} Bg2+ {[%emt 0:01:19]} 78. Ke2 {[%emt 0:00:25]} f3+ {[%emt 0:00:30]} 79. Ke1 {[%emt 0:00:07]} f2+ {[%emt 0:00:05] Weighted Error Value: White=0.50/Black=0.29 (precise)} 0-1

[Event "26th Womens ECCC 2022"]
[Site "Mayrhofen"]
[Date "2022.10.09"]
[Round "7.26"]
[White "Radeva, Viktoria"]
[Black "Peglau, Dora"]
[Result "1-0"]
[ECO "B12"]
[WhiteElo "2263"]
[BlackElo "1745"]
[Annotator "TA"]
[PlyCount "103"]
[EventDate "2022.10.03"]
[EventType "team-tourn"]
[EventCountry "AUT"]
[SourceTitle "playchess.com"]
[Source "ChessBase"]
[SourceQuality "1"]
[TimeControl "40/5400+30:1800+30"]

{[%evp 12,103,22,7,22,30,27,-35,-17,-2,35,39,35,37,69,35,80,25,25,24,85,16,72,0,134,134,138,135,145,152,152,156,155,157,155,144,136,127,107,0,204,-8,-8,-8,-4,-17,-29,-39,-35,-20,-34,-25,-32,-39,0,0,0,0,0,0,0,0,0,0,0,0,113,113,116,116,476,439,471,0,0,0,0,0,0,0,1411,724,12836,12837,12839,12839,12841,12842,12845,12846,12846,12847,12847,12845]} 1. e4 {[%emt 0:00:08]} c6 {[%emt 0:00:11]} 2. d4 {[%emt 0:00:05]} d5 {[%emt 0:00:06]} 3. e5 {[%emt 0:00:08]} Bf5 {[%emt 0:00:08]} 4. h4 {[%emt 0:00:11]} h6 {[%emt 0:01:18]} 5. g4 {[%emt 0:00:16]} Be4 {[%emt 0:00:05]} 6. f3 {[%emt 0:00:07]} Bh7 {[%emt 0:00:05]} 7. e6 {[%emt 0:00:16]} Nf6 {[%emt 0:00:18] B12: Caro-Kann: Advance Variation.} 8. Nc3 fxe6 {[%emt 0:01:21] [#]} 9. Be3 $146 {[%emt 0:04:20]} ({Better is} 9. Bf4 $11) ({Predecessor:} 9. Bd3 Qd6 10. Nge2 Nbd7 11. Bxh7 Nxh7 12. f4 O-O-O 13. Qd3 Nhf6 14. Rg1 g5 15. hxg5 hxg5 16. fxg5 {1-0 (41) Tokhirjonova,G (2435)-Gunina,V (2497) Khanty-Mansiysk 2018}) 9... Qd6 {[%emt 0:04:21] Black is slightly better.} 10. Qd2 {[%emt 0:03:19]} e5 {[%emt 0:13:41] Inhibits Bf4.} 11. dxe5 {[%emt 0:07:54]} Qxe5 {[%emt 0:00:02]} 12. O-O-O {[%emt 0:01:21]} Qc7 {[%emt 0:08:35]} 13. Bf4 {[%emt 0:09:03][%mdl 1024] White has compensation.} (13. g5 $5 {[%cal Rg5f6]}) 13... Qa5 {[%emt 0:04:34]} 14. Bh3 {[%emt 0:23:05]} ({White should play} 14. g5 $16) 14... Nfd7 $11 {[%emt 0:10:20]} 15. g5 {[%emt 0:10:58]} Na6 {[%emt 0:07:55]} (15... Nb6 $1 $11) 16. a3 {[%emt 0:20:56]} (16. gxh6 Nb4 $11) (16. Nge2 $16) 16... O-O-O {[%emt 0:07:14]} (16... Nb6 $1 $11) 17. Qd4 {[%emt 0:03:10]} (17. Nge2 $16) 17... Qb6 {[%emt 0:04:01]} (17... hxg5 $2 18. hxg5 e6 19. Bxe6 $18) (17... Nc7 $1 $11 {remains equal.}) 18. Qxb6 $40 {[%emt 0:06:46][%mdl 128] White goes for the king. White is much more active.} axb6 {[%emt 0:00:08] [#]} 19. Na4 $1 {[%emt 0:00:20][%cal Ra4b6]} e6 {[%emt 0:04:57]} 20. Bxe6 {[%emt 0:00:15][%cal Ra4b6]} Bc5 {[%emt 0:00:06]} 21. b4 {[%emt 0:02:18]} Bf2 {[%emt 0:00:40]} 22. Nh3 {[%emt 0:01:12]} (22. gxh6 $6 b5 $16) 22... b5 {[%emt 0:00:24]} 23. Nxf2 {[%emt 0:02:03][%cal Ra4b6]} bxa4 {[%emt 0:00:10]} 24. gxh6 {[%emt 0:02:28]} gxh6 {[%emt 0:00:47]} 25. c4 {[%emt 0:01:06]} (25. Rhg1 $16) 25... dxc4 $2 {[%emt 0:01:03]} (25... Rhf8 $11 {and Black has nothing to worry.} 26. Nh3 (26. Bxh6 Rxf3 27. Rhf1 Rxa3 $17) 26... dxc4) 26. Rd6 $2 {[%emt 0:01:05]} (26. Bxc4 Rhf8 27. Rd4 (27. Bxh6 $2 Rxf3 28. Bg5 Rc3+ 29. Kb2 Rxc4 $17) 27... Nc7 $11) (26. Bxh6 Nc7 27. Bxc4 Bg8 28. Bxg8 Rxh6 $11) ({White should try} 26. Ne4 $18 Bxe4 27. fxe4) 26... Nc7 $11 {[%emt 0:02:00]} (26... Rhf8 27. Bxh6 Rxf3 28. Bg5 $14) 27. Bh3 {[%emt 0:00:27] This bishop pair is nice.} Rhf8 {[%emt 0:01:09][%cal Bh8f8,Bf8f3,Bf3c3][%mdl 32]} 28. Bxh6 {[%emt 0:00:28]} Rxf3 {[%emt 0:00:14]} 29. Bg5 {[%emt 0:00:14]} Nb5 {[%emt 0:11:59]} 30. Rh6 {[%emt 0:00:16]} Rc3+ {[%emt 0:04:19]} 31. Kd1 {[%emt 0:00:20]} Bc2+ {[%emt 0:01:36]} 32. Kd2 $1 {[%emt 0:00:07]} Rf8 {[%emt 0:01:04]} (32... Rg8 $5 {[%cal Rg8f8]}) 33. Rf6 {[%emt 0:01:35] Really sharp!} Rxf6 {[%emt 0:03:12]} 34. Bxf6 {[%emt 0:00:01]} Rf3 {[%emt 0:00:00]} 35. Bxd7+ {[%emt 0:00:49]} Kxd7 {[%emt 0:00:10]} 36. Ng4 {[%emt 0:00:01] Strongly threatening Ne5+.} Rg3 {[%emt 0:02:09]} 37. Kxc2 {[%emt 0:00:07][%cal Oh4h5]} Rxg4 {[%emt 0:00:06][%mdl 4096] Endgame KRB-KRN} 38. h5 $1 {[%emt 0:00:22] Threatens to win with h6.} Rg2+ {[%emt 0:01:37]} (38... Nxa3+ $11 39. Kc1 Rf4) 39. Kc1 $16 {[%emt 0:00:50]} Rf2 {[%emt 0:07:04] [#]} (39... Nxa3 $2 40. h6 Re2 41. h7 $18) 40. Bg7 {[%emt 0:00:23]} c3 $2 {[%emt 0:00:45][%mdl 8192]} (40... Nxa3 $2 41. h6 c5 42. h7 $18) (40... Nd6 $16) 41. h6 $18 {[%emt 0:04:06] aiming for h7.} Ra2 {[%emt 0:08:17] ...Ra1+ is the strong threat.} (41... Nxa3 $2 42. Bxc3 Rf8 43. Rd1+ Ke6 44. h7) 42. Kb1 {[%emt 0:18:45] Prevents Ra1+.} ({Not} 42. Rd1+ Kc7 43. Be5+ Kb6 $15) (42. Rh4 $18 {And now h7 would win.} Ra1+ 43. Kc2 Ra2+ 44. Kd3 Rd2+ 45. Ke3) 42... Rd2 $1 $11 {[%emt 0:13:03]} 43. h7 {[%emt 0:07:58]} Nxa3+ {[%emt 0:00:08]} 44. Ka1 $1 {[%emt 0:00:18]} Nc2+ {[%emt 0:02:44]} 45. Ka2 {[%emt 0:02:17]} Ne1+ $2 {[%emt 0:04:09][%mdl 8192]} (45... Nxb4+ $2 46. Ka3 c5 47. Kxa4 Ra2+ 48. Kb5 $18) (45... Ne3+ $11 46. Ka1 (46. Ka3 $2 b5 $19) 46... Nc2+ 47. Kb1 Na3+ 48. Ka1 Nc2+) 46. Ka3 $18 {[%emt 0:00:33] White is clearly winning.} c2 {[%emt 0:03:26]} 47. Rxe1 {[%emt 0:00:29]} Rd1 {[%emt 0:00:18]} 48. Bh6 {[%emt 0:00:26]} Rxe1 {[%emt 0:01:15]} 49. h8=Q {[%emt 0:00:07]} c1=Q+ {[%emt 0:00:22]} 50. Bxc1 {[%emt 0:00:02]} Rxc1 {[%emt 0:00:08]} 51. Qg7+ {[%emt 0:00:27]} Kc8 {[%emt 0:00:21]} 52. Qg4+ {[%emt 0:00:19] Weighted Error Value: White=0.28 (precise) /Black=0.37} 1-0